bitfinex/quotes_SOLUSD_20250819
["timestamp","ask_amount","ask_price","bid_price","bid_amount"]
[1755637017035,7.19856714,178.89,178.87,39.34]
[1755637017426,7.16856714,178.88,178.87,39.34]
[1755637017735,7.19856714,178.89,178.87,40.0]
[1755637018553,0.03,178.89,178.87,39.34]
[1755637018934,0.03,178.89,178.87,40.0]
[1755637019339,7.19856714,178.89,178.87,39.34]
[1755637020251,7.16856714,178.88,178.87,39.34]
[1755637020454,7.82856714,178.88,178.87,39.34]
[1755637021051,7.82856714,178.88,178.85,39.36]
[1755637021364,7.16856714,178.86,178.85,39.36]
[1755637021747,7.82856714,178.86,178.83,39.36]
[1755637021950,7.16856714,178.84,178.83,39.36]
[1755637022461,7.16856714,178.86,178.83,40.02]
[1755637022752,7.16856714,178.86,178.84,0.66]
[1755637022939,7.16856714,178.86,178.84,40.0]
[1755637023140,7.16856714,178.86,178.85,0.66]
[1755637026860,0.03,178.89,178.86,13.59559401]
[1755637027165,0.03,178.89,178.88,33.31072871]
[1755637027354,0.03,178.89,178.88,26.14216157]
[1755637027560,0.03,178.89,178.88,26.85216157]
[1755637027751,0.03,178.89,178.88,41.21929571]
[1755637029561,0.03,178.89,178.88,34.05072857]
[1755637031152,0.03,178.89,178.88,33.34072857]
[1755637032057,0.03,178.89,178.86,0.71]
[1755637032058,7.19856714,178.89,178.86,0.71]
[1755637032243,7.19856714,178.89,178.88,39.34]
[1755637032563,7.89856714,178.89,178.88,39.34]
[1755637032955,7.19856714,178.89,178.88,39.34]
[1755637035641,0.03,178.89,178.88,39.34]
[1755637037762,7.19856714,178.89,178.88,39.34]
[1755637040640,7.89856714,178.89,178.88,39.34]
[1755637042342,7.89856714,178.89,178.84,0.71]
[1755637042650,7.16856714,178.86,178.85,39.34]
[1755637042965,7.16856714,178.87,178.85,40.05]
[1755637043464,7.16856714,178.88,178.85,39.34]
[1755637043676,7.16856714,178.88,178.86,0.71]
[1755637043841,7.16856714,178.88,178.85,39.34]
[1755637044051,7.16856714,178.87,178.85,39.34]
[1755637044257,7.16856714,178.87,178.85,40.05]
[1755637048277,7.16856714,178.87,178.86,0.71]
[1755637049976,0.03,178.89,178.86,0.71]
[1755637050172,7.16856714,178.88,178.87,39.34]
[1755637052985,0.03,178.89,178.87,40.05]
[1755637053280,0.7,178.88,178.85,7.168567]
[1755637053464,7.16856714,178.86,178.83,0.71]
[1755637053660,3.76896062,178.88,178.84,39.82]
[1755637053989,0.03,178.89,178.81,3.767495]
[1755637053990,0.7,178.86,178.81,3.767495]
[1755637054154,0.7,178.86,178.78,0.06]
[1755637054359,7.16856714,178.84,178.79,40.48]
[1755637054579,7.16856714,178.84,178.8,14.39775558]
[1755637054776,7.16856714,178.85,178.81,0.66]
[1755637054971,7.16856714,178.84,178.82,39.84]
[1755637055371,3.76832733,178.86,178.83,0.66]
[1755637055575,7.16856714,178.84,178.82,39.84]
[1755637055758,7.16856714,178.83,178.82,39.84]
[1755637055958,7.16856714,178.83,178.78,0.06]
[1755637055959,7.82856714,178.83,178.78,0.06]
[1755637056260,0.66,178.85,178.8,39.84]
[1755637056465,0.66,178.84,178.8,40.5]
[1755637057488,7.16856714,178.81,178.8,40.5]
[1755637057860,3.76832733,178.87,178.8,40.5]
[1755637058075,7.16856714,178.82,178.8,39.84]
[1755637058264,3.76832733,178.86,178.81,0.66]
[1755637058466,3.76832733,178.86,178.8,39.84]
[1755637058467,7.16856714,178.83,178.8,39.84]
[1755637058763,0.66,178.86,178.82,0.66]
[1755637059668,0.66,178.86,178.8,39.84]
[1755637059977,7.16856714,178.81,178.8,40.5]
[1755637060182,7.16856714,178.82,178.8,40.5]
[1755637060385,7.16856714,178.82,178.81,0.66]
[1755637061885,0.66,178.86,178.81,0.66]
[1755637062184,7.16856714,178.83,178.81,0.66]
[1755637062395,7.16856714,178.84,178.82,0.66]
[1755637062585,7.16856714,178.84,178.83,39.8]
[1755637064885,7.82856714,178.84,178.83,39.8]
[1755637065602,7.82856714,178.84,178.8,39.84]
[1755637065781,7.16856714,178.81,178.8,39.84]
[1755637067767,7.82856714,178.81,178.8,0.06]
[1755637067973,33.82856714,178.81,178.8,0.06]
[1755637068279,7.16856714,178.81,178.8,0.06]
[1755637068793,7.82856714,178.81,178.8,0.06]
[1755637069098,26.0,178.84,178.8,0.06]
[1755637069099,26.0,178.84,178.8,0.72]
[1755637069296,7.16856714,178.81,178.8,0.72]
[1755637070286,7.16856714,178.82,178.8,0.72]
[1755637070497,7.16856714,178.81,178.8,0.72]
[1755637070877,7.16856714,178.81,178.8,0.06]
[1755637075478,26.0,178.84,178.8,0.72]
[1755637075684,7.16856714,178.82,178.8,0.06]
[1755637075884,7.16856714,178.82,178.81,0.66]
[1755637078203,7.16856714,178.82,178.8,0.06]
[1755637078409,7.16856714,178.81,178.8,0.72]
[1755637080113,7.16856714,178.81,178.8,0.06]
[1755637080805,7.16856714,178.81,178.8,0.72]
[1755637081411,7.16856714,178.81,178.8,0.06]
[1755637081874,0.66,178.84,178.8,0.06]
[1755637082078,7.16856714,178.81,178.8,0.06]
[1755637082278,7.82856714,178.81,178.8,0.06]
[1755637082497,7.16856714,178.81,178.8,0.06]
[1755637082880,7.16856714,178.82,178.8,0.72]
[1755637083084,7.16856714,178.82,178.8,0.06]
[1755637083389,7.16856714,178.82,178.8,0.72]
[1755637089927,7.16856714,178.81,178.8,0.06]
[1755637090296,7.82856714,178.81,178.8,0.06]
[1755637093822,11.58774928,178.81,178.8,0.06]
[1755637094710,10.92774928,178.81,178.8,0.06]
[1755637095810,10.93511432,178.81,178.8,0.06]
[1755637098039,3.76654718,178.81,178.8,0.75]
[1755637098211,10.93511432,178.81,178.8,0.06]
[1755637100715,3.76654718,178.81,178.8,0.06]
[1755637100916,0.03,178.82,178.8,7.91856714]
[1755637101138,0.03,178.82,178.81,0.69]
[1755637110833,7.19856714,178.82,178.8,39.62]
[1755637111437,7.19856714,178.82,178.8,40.31]
[1755637111845,0.03,178.82,178.8,40.31]
[1755637112051,0.03,178.82,178.81,39.54]
[1755637112641,7.19856714,178.82,178.81,39.54]
[1755637116037,7.19856714,178.82,178.81,26.0]
[1755637117739,7.19856714,178.82,178.8,0.06]
[1755637117960,7.19856714,178.82,178.8,0.77]
[1755637118357,7.19856714,178.82,178.81,0.71]
[1755637121763,7.19856714,178.82,178.8,0.06]
[1755637122066,7.19856714,178.82,178.81,0.71]
[1755637122567,0.03,178.82,178.81,0.71]
[1755637122771,0.03,178.82,178.81,26.71]
[1755637123652,0.03,178.82,178.81,0.71]
[1755637126854,0.03,178.82,178.81,0.85216157]
[1755637127061,0.03,178.82,178.81,21.61632272]
[1755637128160,0.03,178.82,178.81,47.61632272]
[1755637130559,0.03,178.82,178.81,87.03632272]
[1755637133370,0.03,178.82,178.81,74.58659668]
[1755637133748,0.03,178.82,178.81,75.14584951]
[1755637133972,0.03,178.82,178.81,161.75967844]
[1755637134160,0.03,178.82,178.81,161.20042561]
[1755637134743,0.03,178.82,178.81,61.86550116]
[1755637134970,0.03,178.82,178.81,69.0340683]
[1755637135763,0.03,178.82,178.81,66.7931093]
[1755637136146,0.03,178.82,178.81,69.0340683]
[1755637141051,0.7,178.82,178.8,0.06]
[1755637141293,7.86856714,178.82,178.8,0.06]
[1755637141503,0.7,178.82,178.81,39.72]
[1755637142976,7.86856714,178.82,178.81,39.72]
[1755637143179,7.86856714,178.82,178.8,0.06]
[1755637143364,7.83856714,178.81,178.8,0.06]
[1755637143567,7.83856714,178.81,178.8,39.78]
[1755637143878,0.03,178.82,178.8,54.22775558]
[1755637144080,0.03,178.82,178.81,0.20216157]
[1755637144283,0.03,178.82,178.81,0.85216157]
[1755637145079,0.03,178.82,178.81,21.61632272]
[1755637146571,7.02856714,178.9,178.84,13.73775558]
[1755637146803,7.02856714,178.9,178.86,0.14216157]
[1755637147004,7.02856714,178.9,178.87,39.7]
[1755637147589,7.16856714,178.89,178.87,39.7]
[1755637148278,7.16856714,178.9,178.87,39.7]
[1755637150271,7.16856714,178.9,178.87,40.35]
[1755637151399,3.76536046,178.92,178.87,40.35]
[1755637151702,0.03,178.95,178.88,14.38775558]
[1755637151907,7.16856714,178.95,178.9,13.73775558]
[1755637152090,3.76193688,178.96,178.91,40.33]
[1755637152277,7.16856714,178.95,178.91,40.33]
[1755637152602,7.16856714,178.94,178.91,40.33]
[1755637152795,7.16856714,178.93,178.91,39.68]
[1755637152999,10.96050402,178.92,178.86,0.14216157]
[1755637153227,7.16856714,178.88,178.87,40.06]
[1755637153393,7.16856714,178.89,178.87,40.06]
[1755637153911,7.16856714,178.89,178.87,40.71]
[1755637154208,0.03,178.91,178.87,40.71]
[1755637154385,7.16856714,178.89,178.87,40.71]
[1755637155203,7.16856714,178.89,178.88,0.65]
[1755637157394,7.16856714,178.9,178.88,0.65]
[1755637158012,7.16856714,178.91,178.89,0.65]
[1755637160993,7.19856714,178.91,178.89,0.65]
[1755637161191,7.19856714,178.91,178.88,0.14216157]
[1755637161192,0.03,178.91,178.88,0.14216157]
[1755637161419,0.03,178.91,178.89,0.65]
[1755637161603,0.03,178.91,178.9,39.96]
[1755637162118,0.03,178.91,178.9,40.61]
[1755637170440,0.03,178.91,178.9,66.61]
[1755637171122,0.03,178.91,178.9,40.61]
[1755637174141,0.03,178.91,178.9,61.51632272]
[1755637177313,0.03,178.91,178.9,65.30498472]
[1755637180221,0.03,178.91,178.9,58.13641758]
[1755637180422,0.03,178.91,178.9,65.30498472]
[1755637181253,0.03,178.91,178.9,58.13641758]
[1755637183057,7.19856714,178.91,178.9,39.90216157]
[1755637183343,7.19856714,178.91,178.9,39.76]
[1755637184327,0.03,178.91,178.9,39.76]
[1755637185422,0.03,178.91,178.9,40.43]
[1755637185629,0.03,178.91,178.9,40.57216157]
[1755637187763,0.03,178.91,178.9,47.74072957]
[1755637187946,0.03,178.91,178.9,40.57216157]
[1755637188462,0.03,178.91,178.9,47.74072857]
[1755637189985,0.03,178.91,178.9,94.50488972]
[1755637191428,0.03,178.91,178.9,47.74072857]
[1755637191629,0.03,178.91,178.9,7.31072857]
[1755637191925,0.03,178.91,178.9,47.23072857]
[1755637192732,0.03,178.91,178.9,47.90072857]
[1755637193751,0.03,178.91,178.9,68.66488972]
[1755637194078,0.03,178.91,178.9,68.72488972]
[1755637196430,0.03,178.91,178.9,60.88632258]
[1755637196623,0.03,178.91,178.9,47.29072857]
[1755637196850,0.03,178.91,178.9,40.12216157]
[1755637197951,0.03,178.91,178.9,40.79216157]
[1755637198869,0.03,178.91,178.9,55.15929571]
[1755637199568,0.03,178.91,178.9,68.75488972]
[1755637200568,0.03,178.91,178.9,61.58632258]
[1755637200940,0.03,178.91,178.9,68.75488972]
[1755637201242,0.03,178.91,178.9,61.58632258]
[1755637201839,0.03,178.91,178.9,68.75488972]
[1755637202570,0.03,178.91,178.9,61.58632258]
[1755637202867,0.03,178.91,178.9,0.20216157]
[1755637203074,7.22856714,178.91,178.9,0.06]
[1755637203469,7.22856714,178.91,178.9,40.24]
[1755637203774,7.22856714,178.91,178.9,0.06]
[1755637203960,10.99874694,178.91,178.9,0.06]
[1755637206190,7.19856714,178.91,178.9,0.06]
[1755637208153,0.03,178.91,178.9,41.14216157]
[1755637208472,7.19856714,178.91,178.9,40.42216157]
[1755637208970,0.03,178.91,178.9,40.42216157]
[1755637209142,0.03,178.91,178.9,41.14216157]
[1755637210750,0.03,178.91,178.9,54.73775558]
[1755637213646,0.03,178.91,178.9,61.90632258]
[1755637216258,0.03,178.91,178.9,47.59072857]
[1755637216465,0.03,178.91,178.9,40.28]
[1755637216667,7.19856714,178.91,178.9,40.28]
[1755637217073,0.03,178.91,178.9,40.28]
[1755637217375,7.19856714,178.91,178.9,40.28]
[1755637218064,0.03,178.91,178.9,40.28]
[1755637218267,7.19856714,178.91,178.9,40.28]
[1755637218776,7.22856714,178.91,178.9,40.28]
[1755637219111,7.22856714,178.91,178.9,0.06]
[1755637219378,10.99688004,178.91,178.9,0.06]
[1755637219695,36.99688004,178.91,178.9,0.06]
[1755637221182,26.0,178.89,178.88,0.06]
[1755637221373,36.93688004,178.89,178.88,0.06]
[1755637221566,36.93688004,178.89,178.86,0.06]
[1755637221567,36.96688004,178.89,178.86,0.06]
[1755637221765,7.16856714,178.87,178.86,0.06]
[1755637223463,7.16856714,178.87,178.86,0.78]
[1755637224359,7.16856714,178.88,178.86,0.78]
[1755637224759,7.16856714,178.88,178.87,0.72]
[1755637226873,0.03,178.91,178.87,0.72]
[1755637227079,0.03,178.91,178.88,0.72]
[1755637227382,7.16856714,178.89,178.88,0.72]
[1755637228085,7.19856714,178.91,178.88,0.72]
[1755637228275,7.19856714,178.91,178.87,0.14216157]
[1755637228480,7.19856714,178.91,178.89,0.72]
[1755637228681,7.16856714,178.9,178.88,0.72]
[1755637229756,7.16856714,178.9,178.87,0.14216157]
[1755637229757,7.16856714,178.9,178.89,0.72]
[1755637229977,0.03,178.91,178.89,0.72]
[1755637230282,0.03,178.91,178.9,0.14216157]
[1755637230678,0.03,178.91,178.9,0.86216157]
[1755637233378,7.19856714,178.91,178.89,40.1]
[1755637233568,7.16856714,178.9,178.89,40.1]
[1755637237880,7.16856714,178.9,178.89,40.77]
[1755637239371,7.16856714,178.9,178.89,40.1]
[1755637240469,7.16856714,178.9,178.87,0.67]
[1755637240669,7.16856714,178.9,178.88,0.67]
[1755637241575,7.16856714,178.89,178.87,40.02]
[1755637241776,7.16856714,178.88,178.86,0.06]
[1755637241978,7.16856714,178.87,178.86,0.06]
[1755637243396,7.19856714,178.87,178.86,0.06]
[1755637243779,33.19856714,178.87,178.86,0.06]
[1755637243980,36.93196075,178.87,178.86,0.06]
[1755637245983,33.16856714,178.87,178.86,0.06]
[1755637246184,33.16856714,178.87,178.79,13.59559401]
[1755637247009,7.16856714,178.83,178.79,13.59559401]
[1755637247778,4.44124706,178.88,178.79,13.59559401]
[1755637247987,7.16856714,178.83,178.79,13.59559401]
[1755637248191,7.16856714,178.83,178.8,0.81216157]
[1755637248698,7.16856714,178.84,178.8,0.81216157]
[1755637250377,7.16856714,178.84,178.78,40.2396797]
[1755637250378,7.16856714,178.83,178.81,0.67]
[1755637250783,0.68,178.87,178.81,0.67]
[1755637251005,7.16856714,178.83,178.81,0.67]
[1755637251300,7.16856714,178.83,178.82,0.67]
[1755637251909,0.68,178.87,178.82,0.67]
[1755637252094,7.16856714,178.83,178.82,0.67]
[1755637252606,7.16856714,178.84,178.82,0.67]
[1755637259430,7.16856714,178.83,178.82,0.67]
[1755637259606,7.84856714,178.83,178.77,0.73]
[1755637259804,7.16856714,178.79,178.77,0.73]
[1755637260123,7.16856714,178.82,178.78,0.14216157]
[1755637260310,7.16856714,178.81,178.79,0.67]
[1755637260513,7.16856714,178.81,178.78,0.14216157]
[1755637260514,7.16856714,178.8,178.77,0.73]
[1755637260696,7.16856714,178.78,178.77,0.73]
[1755637261018,7.16856714,178.78,178.77,0.87216157]
[1755637261524,7.16856714,178.79,178.77,0.87216157]
[1755637261902,7.16856714,178.8,178.78,0.81216157]
[1755637262199,7.16856714,178.81,178.78,0.81216157]
[1755637263102,7.16856714,178.81,178.79,0.67]
[1755637263502,7.16856714,178.8,178.79,0.14216157]
[1755637263712,7.16856714,178.8,178.79,0.81216157]
[1755637264228,7.16856714,178.81,178.79,0.81216157]
[1755637264716,7.16856714,178.81,178.8,0.68]
[1755637265713,7.16856714,178.81,178.79,0.14216157]
[1755637265921,7.16856714,178.8,178.79,0.14216157]
[1755637266815,0.7,178.83,178.79,0.14216157]
[1755637267120,7.16856714,178.8,178.79,0.14216157]
[1755637267437,7.16856714,178.82,178.79,0.82216157]
[1755637267792,0.7,178.85,178.8,0.14216157]
[1755637268005,7.16856714,178.83,178.8,0.14216157]
[1755637268206,7.16856714,178.83,178.81,0.68]
[1755637269919,7.16856714,178.84,178.82,0.68]
[1755637270405,7.16856714,178.83,178.82,0.68]
[1755637270603,7.86856714,178.83,178.79,39.73775558]
[1755637270799,7.16856714,178.82,178.79,79.83775558]
[1755637270999,7.16856714,178.82,178.79,80.51775558]
[1755637271204,7.16856714,178.82,178.8,0.68]
[1755637271923,7.16856714,178.81,178.79,53.83775558]
[1755637272138,7.16856714,178.8,178.79,40.1]
[1755637272316,0.7,178.83,178.79,40.1]
[1755637272513,7.16856714,178.8,178.79,40.1]
[1755637273233,0.7,178.8,178.77,0.06]
[1755637273524,7.16856714,178.8,178.78,0.68]
[1755637274235,7.16856714,178.79,178.77,40.22]
[1755637274413,7.16856714,178.79,178.77,40.9]
[1755637274815,7.16856714,178.81,178.78,0.14216157]
[1755637275005,134.75861754,178.86,178.78,0.14216157]
[1755637275006,7.16856714,178.84,178.8,0.14216157]
[1755637275211,7.16856714,178.85,178.81,0.68]
[1755637275431,7.16856714,178.85,178.82,0.68]
[1755637276240,7.16856714,178.84,178.82,0.68]
[1755637277624,7.16856714,178.84,178.81,40.14]
[1755637277822,7.16856714,178.84,178.82,0.68]
[1755637278125,0.03,178.87,178.83,0.68]
[1755637278303,7.19856714,178.87,178.84,40.12]
[1755637278504,0.03,178.87,178.84,40.8]
[1755637279527,0.03,178.87,178.84,40.12]
[1755637279726,7.16856714,178.86,178.84,40.12]
[1755637280224,7.89856714,178.87,178.84,40.12]
[1755637280397,7.19856714,178.87,178.84,40.12]
[1755637281521,7.16856714,178.86,178.84,40.12]
[1755637281707,7.89856714,178.87,178.84,40.12]
[1755637281911,7.19856714,178.87,178.84,40.8]
[1755637282426,0.03,178.87,178.85,0.68]
[1755637282632,0.03,178.87,178.86,0.68]
[1755637283702,0.03,178.87,178.86,7.99072871]
[1755637285229,0.03,178.87,178.86,0.82216157]
[1755637285730,0.03,178.87,178.84,40.12]
[1755637285953,0.73,178.87,178.84,40.36]
[1755637286229,10.96665259,178.87,178.84,40.36]
[1755637286433,0.7,178.86,178.84,40.36]
[1755637287520,3.79808545,178.87,178.84,41.04]
[1755637288234,0.03,178.87,178.84,41.04]
[1755637288421,3.79915011,178.87,178.84,41.04]
[1755637289012,0.03,178.87,178.84,41.04]
[1755637292213,0.03,178.87,178.84,40.36]
[1755637292417,7.19856714,178.87,178.84,41.04]
[1755637292735,10.96732191,178.87,178.84,41.04]
[1755637292929,10.96732191,178.87,178.84,40.36]
[1755637293236,11.66732191,178.87,178.84,40.36]
[1755637293438,11.6373888,178.86,178.84,40.36]
[1755637293623,11.6373888,178.85,178.78,0.68]
[1755637293932,0.03,178.87,178.79,48.24856714]
[1755637293933,10.9373888,178.84,178.79,48.24856714]
[1755637294162,3.76929257,178.85,178.8,0.69]
[1755637294321,10.93785971,178.84,178.79,40.4]
[1755637294634,7.83856714,178.84,178.8,0.69]
[1755637294832,3.7693675,178.83,178.8,0.69]
[1755637295017,7.16856714,178.83,178.8,0.69]
[1755637295216,10.93764852,178.83,178.8,0.69]
[1755637295422,7.16856714,178.83,178.8,0.69]
[1755637296557,7.16856714,178.82,178.79,40.4]
[1755637296858,7.26856714,178.82,178.79,40.4]
[1755637297364,7.16856714,178.81,178.79,40.4]
[1755637298159,3.86887764,178.82,178.79,40.4]
[1755637298160,0.1,178.82,178.79,40.4]
[1755637298457,0.1,178.82,178.79,41.09]
[1755637298458,7.16856714,178.82,178.79,41.09]
[1755637298843,10.93744478,178.82,178.79,41.09]
[1755637299023,7.16856714,178.82,178.79,41.09]
[1755637299226,10.93744478,178.82,178.79,41.09]
[1755637299526,7.16856714,178.82,178.79,41.09]
[1755637299726,10.93744478,178.82,178.79,41.09]
[1755637299950,7.16856714,178.82,178.79,41.09]
[1755637300135,10.93744478,178.83,178.8,0.69]
[1755637300335,7.16856714,178.83,178.81,0.69]
[1755637300540,10.93744478,178.85,178.82,0.69]
[1755637300939,7.16856714,178.85,178.82,0.69]
[1755637301139,10.93744478,178.85,178.82,0.69]
[1755637301350,7.16856714,178.84,178.79,40.4]
[1755637301563,7.16856714,178.83,178.8,0.69]
[1755637301754,10.93744478,178.84,178.8,0.69]
[1755637301930,10.93744478,178.84,178.81,0.69]
[1755637304658,10.93744478,178.84,178.82,0.69]
[1755637304856,7.16856714,178.84,178.82,0.69]
[1755637305039,10.93744478,178.85,178.82,0.69]
[1755637305250,7.16856714,178.85,178.82,0.69]
[1755637305450,10.93744478,178.85,178.82,0.69]
[1755637306051,7.16856714,178.84,178.82,0.69]
[1755637306239,7.16856714,178.83,178.8,0.69]
[1755637306444,7.16856714,178.81,178.79,40.4]
[1755637307435,7.16856714,178.81,178.79,41.09]
[1755637307644,0.67,178.83,178.79,41.09]
[1755637307856,7.16856714,178.81,178.79,41.09]
[1755637308257,7.16856714,178.82,178.79,41.09]
[1755637308764,7.16856714,178.8,178.79,40.4]
[1755637310272,7.16856714,178.81,178.79,41.09]
[1755637311143,7.83856714,178.8,178.78,0.06]
[1755637311341,7.16856714,178.79,178.78,0.06]
[1755637313264,7.83856714,178.79,178.78,0.06]
[1755637313662,11.60744478,178.79,178.78,0.06]
[1755637314146,7.83856714,178.79,178.78,0.06]
[1755637314540,11.60744478,178.79,178.78,0.06]
[1755637314741,7.83856714,178.79,178.78,0.06]
[1755637317381,7.16856714,178.79,178.78,0.06]
[1755637317548,7.83856714,178.79,178.78,0.06]
[1755637318156,47.43416115,178.79,178.78,0.06]
[1755637318477,29.70504468,178.79,178.78,0.06]
[1755637318779,39.59559401,178.78,178.75,0.06]
[1755637318947,39.59559401,178.78,178.74,0.06]
[1755637318948,7.16856714,178.76,178.74,0.06]
[1755637319270,33.16856714,178.75,178.74,0.06]
[1755637319568,33.16856714,178.75,178.68,0.2]
[1755637319569,13.59559401,178.74,178.68,0.2]
[1755637319876,25.20303879,178.74,178.68,0.2]
[1755637320044,7.16856714,178.73,178.68,0.2]
[1755637320245,52.14744478,178.73,178.68,0.2]
[1755637320944,51.47744478,178.73,178.68,0.89]
[1755637321682,52.14744478,178.73,178.68,0.89]
[1755637322239,48.37856714,178.73,178.68,0.89]
[1755637323773,61.97416115,178.73,178.68,0.2]
[1755637323972,65.72526535,178.73,178.68,0.2]
[1755637324139,40.54,178.73,178.69,0.69]
[1755637324343,47.70856714,178.73,178.68,0.2]
[1755637324577,47.70856714,178.73,178.7,0.67]
[1755637326056,7.19856714,178.73,178.7,0.73]
[1755637326448,7.19856714,178.73,178.72,0.87]
[1755637327062,0.03,178.73,178.72,0.87]
[1755637329361,0.03,178.73,178.72,8.18072871]
[1755637330794,0.03,178.73,178.72,21.77632272]
[1755637331867,0.03,178.73,178.72,47.77632272]
[1755637332256,0.03,178.73,178.72,21.77632272]
[1755637332464,0.03,178.73,178.72,27.47691597]
[1755637332663,0.03,178.73,178.72,33.07226064]
[1755637337873,0.03,178.73,178.72,35.31409864]
[1755637339412,0.03,178.73,178.72,35.8736331]
[1755637339583,0.03,178.75,178.74,13.59559401]
[1755637339899,0.03,178.75,178.74,61.24632272]
[1755637340103,0.03,178.77,178.76,39.59559401]
[1755637340271,0.03,178.77,178.76,20.90632272]
[1755637340474,0.03,178.77,178.76,47.57632272]
[1755637340879,0.03,178.77,178.76,21.57632272]
[1755637341076,0.03,178.85,178.8,39.59559401]
[1755637341280,0.03,178.85,178.84,7.31072871]
[1755637341577,0.03,178.85,178.84,21.57632272]
[1755637342084,0.03,178.85,178.84,20.90632272]
[1755637343505,0.03,178.85,178.84,21.57632272]
[1755637343902,0.03,178.85,178.84,61.85632272]
[1755637344093,0.03,178.85,178.84,61.18632272]
[1755637345606,0.03,178.85,178.78,26.0]
[1755637345607,0.69,178.85,178.8,7.16856714]
[1755637345910,7.85856714,178.85,178.81,40.24]
[1755637346113,0.66,178.84,178.81,40.24]
[1755637347030,0.66,178.83,178.81,40.24]
[1755637347199,7.82856714,178.83,178.81,40.24]
[1755637347405,0.66,178.83,178.81,40.24]
[1755637347802,0.66,178.83,178.79,0.14216157]
[1755637348192,0.66,178.83,178.79,40.36216157]
[1755637349423,0.66,178.83,178.79,41.03216157]
[1755637349721,7.85856714,178.85,178.79,48.20072871]
[1755637349924,7.85856714,178.85,178.81,0.14216157]
[1755637349925,0.03,178.85,178.81,0.14216157]
[1755637350102,0.03,178.85,178.82,40.87]
[1755637350515,0.03,178.85,178.83,21.57632272]
[1755637350903,0.03,178.85,178.83,20.90632272]
[1755637351100,0.03,178.85,178.84,0.81216157]
[1755637351717,0.03,178.85,178.84,7.98072871]
[1755637352316,0.03,178.85,178.84,21.57632272]
[1755637354503,0.03,178.85,178.84,14.40775558]
[1755637354718,0.03,178.85,178.84,21.57632272]
[1755637356131,0.7,178.85,178.81,2.240959]
[1755637356303,7.16856714,178.83,178.8,40.24]
[1755637356512,0.67,178.82,178.8,40.24]
[1755637356808,7.86856714,178.85,178.8,48.11856714]
[1755637357327,0.67,178.84,178.8,40.95]
[1755637357737,7.83856714,178.84,178.8,40.24]
[1755637357906,7.83856714,178.83,178.77,20.76416115]
[1755637358105,7.16856714,178.82,178.78,40.46]
[1755637358316,7.83856714,178.81,178.78,40.46]
[1755637358519,0.67,178.81,178.78,40.46]
[1755637358721,0.03,178.85,178.78,40.46]
[1755637358722,7.16856714,178.82,178.78,40.46]
[1755637359014,7.16856714,178.82,178.78,41.17]
[1755637359417,7.83856714,178.83,178.78,40.46]
[1755637359638,7.83856714,178.83,178.79,0.71]
[1755637359822,7.16856714,178.83,178.79,0.71]
[1755637360528,0.7,178.85,178.8,0.71]
[1755637360529,7.16856714,178.84,178.8,0.71]
[1755637360929,7.16856714,178.84,178.79,7.31072871]
[1755637361118,7.86856714,178.85,178.81,0.71]
[1755637361434,7.86856714,178.85,178.81,41.15]
[1755637361737,7.19856714,178.85,178.81,41.15]
[1755637361935,7.16856714,178.82,178.81,40.44]
[1755637362132,0.67,178.82,178.81,40.44]
[1755637362439,7.16856714,178.83,178.81,40.44]